bitfinex-derivatives/quotes_BNBF0:USTF0_20250329
["timestamp","ask_amount","ask_price","bid_price","bid_amount"]
[1743244263836,6.23055158,606.32,605.89,0.26874803]
[1743244264036,6.23055158,606.31,605.88,1.704]
[1743244264335,6.23055158,606.3,605.89,0.26879108]
[1743244264536,6.23055158,606.29,605.89,0.26879108]
[1743244264731,6.23055158,606.28,605.89,0.26879108]
[1743244264932,3.63492944,606.27,605.89,0.26879108]
[1743244265130,3.63492944,606.26,605.89,0.26879108]
[1743244265432,2.55671796,606.29,605.9,2.313]
[1743244265433,2.20604433,606.25,605.9,2.313]
[1743244265632,1.31299114,606.24,605.91,0.26879108]
[1743244265832,0.89312543,606.23,605.91,0.26879108]
[1743244266036,0.89312543,606.22,605.91,0.26879108]
[1743244266237,0.89312543,606.21,605.91,0.26879108]
[1743244266433,0.89312543,606.2,605.91,0.26879108]
[1743244266633,0.98106806,606.48,605.91,0.26879108]
[1743244266832,6.23209078,606.47,605.91,0.26879108]
[1743244267037,6.23209078,606.46,605.91,0.26879108]
[1743244267337,6.23209078,606.45,605.91,0.26879108]
[1743244267538,6.23209078,606.44,605.91,0.26879108]
[1743244267737,6.23209078,606.43,605.91,0.26879108]
[1743244267937,6.23209078,606.42,605.91,0.26879108]
[1743244268138,6.23209078,606.41,605.91,0.26879108]
[1743244268338,6.23209078,606.4,605.91,0.26879108]
[1743244268537,6.23209078,606.39,605.91,0.26879108]
[1743244268735,6.23209078,606.38,605.91,0.26879108]
[1743244268932,6.23209078,606.37,605.91,0.26879108]
[1743244269135,6.23209078,606.36,605.91,0.26879108]
[1743244269337,6.23209078,606.35,605.91,0.26879108]
[1743244269538,6.23209078,606.34,605.91,0.26879108]
[1743244269739,5.737383,606.33,605.91,0.26879108]
[1743244269934,3.63581084,606.32,605.91,0.26879108]
[1743244270133,3.63581084,606.31,605.91,0.26879108]
[1743244270337,3.63581084,606.3,605.91,0.26879108]
[1743244270538,3.63581084,606.29,605.91,0.26879108]
[1743244270838,2.20668577,606.28,605.92,1.23078804]
[1743244271040,3.63685392,606.27,605.92,1.23078804]
[1743244271232,5.74010136,606.26,605.92,1.23078804]
[1743244271432,3.63685392,606.25,605.92,1.23078804]
[1743244271632,3.63685392,606.24,605.92,1.23078804]
[1743244271836,2.20668577,606.23,605.93,0.26879108]
[1743244272036,2.20668577,606.22,605.93,0.26879108]
[1743244272237,2.20668577,606.21,605.93,0.26879108]
[1743244272537,2.20668577,606.2,605.9,2.313]
[1743244272737,2.20668577,606.19,605.9,2.313]
[1743244272935,2.20668577,606.18,605.91,0.26892976]
[1743244273135,2.20668577,606.17,605.9,2.313]
[1743244273336,2.20668577,606.16,605.91,0.2689453]
[1743244273533,2.20668577,606.15,605.91,0.2689453]
[1743244273731,0.89320317,606.14,605.91,0.2689453]
[1743244273937,0.89320317,606.13,605.91,0.2689453]
[1743244274131,0.98106806,606.41,605.91,0.2689453]
[1743244274337,6.23923688,606.4,605.91,0.2689453]
[1743244274536,6.23923688,606.39,605.91,0.2689453]
[1743244274737,6.23923688,606.38,605.91,0.2689453]
[1743244274933,6.23923688,606.37,605.91,0.2689453]
[1743244275239,6.23923688,606.36,605.91,0.2689453]
[1743244275440,6.23923688,606.35,605.91,0.2689453]
[1743244275642,6.23923688,606.34,605.91,0.2689453]
[1743244275842,6.24019708,606.33,605.91,0.2689453]
[1743244276040,6.24019708,606.32,605.91,0.2689453]
[1743244276237,6.24019708,606.31,605.91,0.2689453]
[1743244276444,6.24019708,606.3,605.91,0.2689453]
[1743244276641,6.24019708,606.29,605.91,0.2689453]
[1743244276837,6.24019708,606.28,605.91,0.2689453]
[1743244277042,5.7453856,606.27,605.91,0.2689453]
[1743244277242,5.7453856,606.26,605.91,0.2689453]
[1743244277541,5.7453856,606.25,605.91,0.2689453]
[1743244277742,2.20976369,606.24,605.91,0.2689453]
[1743244278039,2.20976369,606.23,605.91,0.2689453]
[1743244278243,0.89430811,606.22,605.91,0.2689453]
[1743244278439,0.98106806,606.52,605.91,0.2689453]
[1743244278642,6.24316399,606.51,605.91,0.2689453]
[1743244278843,6.24316399,606.5,605.91,0.2689453]
[1743244279040,6.24316399,606.49,605.91,0.2689453]
[1743244279345,6.24316399,606.48,605.91,0.2689453]
[1743244279643,6.24316399,606.47,605.91,0.2689453]
[1743244279842,6.24316399,606.46,605.91,0.2689453]
[1743244280043,6.24316399,606.45,605.91,0.2689453]
[1743244280244,6.24316399,606.44,605.91,0.2689453]
[1743244280440,6.24316399,606.43,605.93,1.23078804]
[1743244280642,0.98106806,606.57,605.93,1.23078804]
[1743244280643,6.24316399,606.42,605.94,0.2689453]
[1743244280944,6.24316399,606.41,605.94,0.2689453]
[1743244281243,5.7484527,606.4,605.94,0.2689453]
[1743244281443,5.7484527,606.39,605.94,0.2689453]
[1743244281745,5.7484527,606.38,605.93,1.23078804]
[1743244281941,5.7484527,606.37,605.94,0.26900941]
[1743244282137,3.64282623,606.36,605.94,0.26900941]
[1743244282343,3.64282623,606.35,605.94,0.26900941]
[1743244282538,3.64282623,606.34,605.93,0.26900941]
[1743244282744,3.64282623,606.33,605.93,0.26900941]
[1743244282943,2.21094334,606.32,605.93,0.26900941]
[1743244283141,2.21094334,606.31,605.93,1.93900941]
[1743244283342,2.21094334,606.3,605.94,0.26900941]
[1743244283544,2.21094334,606.29,605.93,1.67]
[1743244283842,2.21094334,606.28,605.94,0.2689692]
[1743244284045,0.8949268,606.27,605.94,0.2689692]
[1743244284244,0.98580839,606.32,605.97,1.23078804]
[1743244284245,0.8949268,606.26,605.97,1.23078804]
[1743244284543,0.89575284,606.25,605.98,0.2689692]
[1743244284839,0.98106806,606.6,605.98,0.2689692]
[1743244285043,6.24844609,606.59,605.98,0.2689692]
[1743244285238,6.24844609,606.58,605.98,0.2689692]
[1743244285442,6.24844609,606.57,605.98,0.2689692]
[1743244285643,6.24844609,606.56,605.98,0.2689692]
[1743244285946,2.56552785,606.58,605.99,1.435]
[1743244285947,6.24862638,606.55,605.99,1.435]
[1743244286147,6.24862638,606.54,606.0,0.2689692]
[1743244286341,6.24862638,606.53,606.0,0.2689692]
[1743244286538,6.24862638,606.52,606.0,0.2689692]
[1743244286739,6.24862638,606.51,606.0,0.2689692]
[1743244286939,6.24862638,606.5,606.0,0.2689692]
[1743244287247,6.24862638,606.49,606.0,0.2689692]
[1743244287447,5.75395273,606.48,606.0,0.2689692]
[1743244287746,5.75384967,606.47,606.0,0.2689692]
[1743244287948,5.75384967,606.46,606.0,0.2689692]
[1743244288149,5.75384967,606.45,606.04,1.23078804]
[1743244288349,5.75345307,606.44,606.05,0.2689692]
[1743244288547,5.75345307,606.43,606.05,0.2689692]
[1743244288747,3.64615867,606.42,606.05,0.2689692]
[1743244288948,3.64615867,606.41,606.05,0.2689692]
[1743244289142,3.64615867,606.4,606.05,0.2689692]
[1743244289346,2.2130191,606.39,606.05,0.2689692]
[1743244289549,2.2130191,606.38,606.05,0.2689692]
[1743244289850,2.21289765,606.37,606.05,0.2689692]
[1743244290046,0.89570989,606.36,606.05,0.2689692]
[1743244290247,0.89570989,606.35,606.05,0.2689692]
[1743244290450,0.98674148,606.36,606.05,0.2689692]
[1743244290451,0.89570989,606.34,606.06,1.49972742]
[1743244290644,0.89570989,606.33,606.07,0.26893938]
[1743244290847,0.89570989,606.32,606.07,0.26893938]
[1743244291044,0.98385988,606.65,606.07,0.26893938]
[1743244291344,7.23145207,606.64,606.07,0.26893938]
[1743244291544,6.24759219,606.63,606.07,0.26893938]
[1743244291745,5.35208894,606.62,606.07,0.26893938]
[1743244291945,6.24778188,606.61,606.07,0.26893938]
[1743244292150,6.24778188,606.6,606.07,0.26893938]
[1743244292348,6.24778188,606.59,606.07,0.26893938]
[1743244292552,6.24778188,606.58,606.07,0.26893938]
[1743244292755,6.24778188,606.57,606.06,0.26893938]
[1743244293057,6.24778188,606.56,606.07,0.26893938]
[1743244293253,6.24778188,606.55,606.06,0.26893938]
[1743244293456,6.24778188,606.54,606.07,0.26893938]
[1743244293657,6.24778188,606.53,606.06,0.26893938]
[1743244293856,6.24778188,606.52,606.07,0.26893938]
[1743244294056,6.24778188,606.51,606.08,0.26893938]
[1743244294356,6.24778188,606.5,606.09,0.26893938]
[1743244294656,8.84963321,606.49,606.1,0.26893938]
[1743244294856,8.84963321,606.49,606.05,1.453]
[1743244294857,6.24778188,606.48,606.11,0.26893938]
[1743244295051,6.24778188,606.47,606.12,0.26893938]
[1743244295250,5.753153,606.46,606.13,0.26893938]
[1743244295453,5.753153,606.45,606.06,0.26893938]
[1743244295756,3.42435135,606.44,606.07,0.26893938]
[1743244295956,5.75237206,606.43,606.06,0.26893938]
[1743244296256,3.64507892,606.42,606.07,0.26893938]
[1743244296456,3.64507892,606.41,606.06,0.26893938]
[1743244296658,3.64507892,606.4,606.07,0.26893938]
[1743244296957,2.21245079,606.39,606.08,0.26893938]
[1743244297152,2.21245079,606.39,606.05,1.453]
[1743244297153,0.89539258,606.38,606.06,0.26893938]
[1743244297352,0.89539258,606.37,606.07,0.26893938]
[1743244297555,1.00071205,606.39,606.08,0.26893938]
[1743244297857,1.00071205,606.39,606.09,0.26893938]
[1743244298052,0.98316367,606.68,606.1,0.26893938]
[1743244298358,6.2433782,606.67,606.11,0.26893938]
[1743244298554,8.84290652,606.66,606.12,0.26893938]
[1743244298751,6.2433782,606.65,606.13,0.26893938]
[1743244298956,6.2433782,606.64,606.06,0.26893938]
[1743244299155,6.2433782,606.63,606.06,0.26893938]
[1743244299457,6.2433782,606.62,606.06,0.26893938]
[1743244299658,6.2433782,606.61,606.06,0.26893938]
[1743244299857,6.2433782,606.6,606.06,0.26893938]
[1743244300052,2.59952832,606.63,606.06,0.26893938]
[1743244300053,8.3483331,606.59,606.06,0.26893938]
[1743244300259,5.74880478,606.58,606.06,0.26893938]
[1743244300459,5.74880478,606.57,606.06,0.26893938]
[1743244300659,5.74880478,606.56,606.06,0.26893938]
[1743244300861,5.74880478,606.55,606.06,0.26893938]
[1743244301055,5.74880478,606.54,606.06,0.26893938]
[1743244301259,3.64303109,606.53,606.06,0.26893938]
[1743244301459,3.64303109,606.52,606.06,0.26893938]
[1743244301658,3.64303109,606.51,606.06,0.26893938]
[1743244301962,2.21081568,606.5,606.06,0.26893938]
[1743244302262,2.21081568,606.49,606.06,0.26893938]
[1743244302460,2.21081568,606.48,606.06,0.26893938]
[1743244302761,3.21063426,606.47,606.06,0.26893938]
[1743244302954,2.21081568,606.46,606.06,0.26893938]
[1743244303155,2.21081568,606.45,606.06,0.26893938]
[1743244303359,2.21081568,606.44,606.06,0.26893938]
[1743244303558,0.89470712,606.43,606.06,0.26893938]
[1743244303761,0.89470712,606.42,606.06,0.26893938]
[1743244303961,0.89482374,606.41,606.06,0.26893938]
[1743244304162,0.89482374,606.4,606.06,0.26893938]
[1743244304361,0.98287187,606.76,606.06,0.26893938]
[1743244304557,6.24890141,606.75,606.06,0.26893938]
[1743244304760,6.24890141,606.74,606.06,0.26893938]
[1743244304960,6.24890141,606.73,606.06,0.26893938]
[1743244305156,6.24890141,606.72,606.06,0.26893938]
[1743244305359,6.24890141,606.71,606.06,0.26893938]
[1743244305559,6.24890141,606.7,606.06,0.26893938]
[1743244305762,6.24890141,606.69,606.06,0.26893938]
[1743244305963,6.24958075,606.68,606.06,0.26893938]
[1743244306257,6.24958075,606.67,606.06,2.22493938]
[1743244306462,6.24958075,606.66,606.07,0.26893938]
[1743244306658,6.24958075,606.65,606.07,0.26893938]
[1743244306859,6.24958075,606.64,606.07,0.26893938]
[1743244307056,6.24958075,606.63,606.07,0.26893938]
[1743244307358,6.24958075,606.62,606.07,0.26893938]
[1743244307555,6.24958075,606.61,606.07,0.26893938]
[1743244307760,6.24958075,606.6,606.06,1.956]
[1743244307961,6.25140885,606.59,606.07,0.26951858]
[1743244308161,6.25140885,606.58,606.07,0.26951858]
[1743244308363,2.60197621,606.61,606.07,0.26951858]
[1743244308364,6.25140885,606.57,606.07,0.26951858]
[1743244308564,2.60197621,606.61,606.08,0.26954875]
[1743244308565,6.25140885,606.56,606.08,0.26954875]
[1743244308862,6.25140885,606.55,606.09,0.26954875]
[1743244309165,6.25140885,606.54,606.1,0.26954875]
[1743244309360,6.25140885,606.53,606.07,0.26954875]
[1743244309558,5.75684793,606.52,606.08,0.26954875]
[1743244309762,5.75684793,606.51,606.09,0.26954875]
[1743244309962,3.64640969,606.5,606.07,0.26954875]
[1743244310265,3.64640969,606.49,606.08,0.26954875]
[1743244310564,3.64640969,606.48,606.07,0.26954875]
[1743244310864,3.64640969,606.47,606.08,0.26954875]
[1743244311068,3.64640969,606.47,606.06,1.956]
[1743244311069,2.21417228,606.46,606.07,0.26954875]
[1743244311264,2.21417228,606.45,606.08,0.26954875]
[1743244311460,2.21417228,606.44,606.16,1.23078804]
[1743244311664,2.21417228,606.43,606.17,0.26954875]
[1743244311863,2.21417228,606.42,606.17,0.26954875]
[1743244312064,0.89514838,606.41,606.17,1.96154875]
[1743244312263,0.89514838,606.4,606.18,0.26954875]
[1743244312465,0.89538636,606.39,606.18,0.26954875]
[1743244312761,0.9832241,606.7,606.18,0.26954875]
[1743244312966,6.25301815,606.69,606.18,0.26954875]
[1743244313165,6.25301815,606.68,606.18,0.26954875]
[1743244313366,6.25301815,606.67,606.18,0.26954875]
[1743244313562,6.25301815,606.66,606.18,0.26954875]
[1743244313758,6.25301815,606.65,606.18,0.26954875]
[1743244313966,6.25301815,606.64,606.18,0.26954875]
[1743244314168,6.25301815,606.63,606.18,0.26954875]
[1743244314367,6.25301815,606.62,606.18,0.26954875]
[1743244314565,6.25301815,606.61,606.18,1.94954875]
[1743244314765,6.25301815,606.6,606.19,0.26954875]
[1743244314966,6.25301815,606.59,606.19,0.26954875]
[1743244315166,6.25301815,606.58,606.19,0.26954875]
[1743244315368,6.25301815,606.57,606.19,0.26954875]
[1743244315567,6.25301815,606.56,606.19,0.26954875]
[1743244315868,6.25301815,606.55,606.19,0.26954875]
[1743244316069,5.75823033,606.54,606.19,0.26954875]
[1743244316268,5.75823033,606.53,606.19,0.26954875]
[1743244316568,5.75823033,606.53,606.18,1.68]
[1743244316569,3.64720313,606.52,606.18,1.68]
[1743244316768,3.64720313,606.51,606.2,0.26942883]
[1743244316969,3.64720313,606.5,606.19,0.26942883]
[1743244317170,2.21470397,606.49,606.18,1.68]
[1743244317367,3.64718607,606.48,606.19,0.26944742]
[1743244317565,1.00137824,606.5,606.18,1.68]
[1743244317566,3.64718607,606.47,606.18,1.68]
[1743244317865,3.64718607,606.46,606.19,0.26946859]
[1743244318065,5.75823889,606.45,606.19,0.26946859]
[1743244318268,3.6472973,606.44,606.19,0.26946859]
[1743244318466,3.6472973,606.43,606.19,0.26946859]
[1743244318770,3.6472973,606.42,606.2,0.26940202]
[1743244318965,3.6472973,606.41,606.19,0.26940202]
[1743244319165,2.21470726,606.4,606.21,0.26940202]
[1743244319369,1.00137824,606.41,606.18,1.68]
[1743244319370,2.21470726,606.39,606.18,1.68]
[1743244319565,2.21470726,606.38,606.19,0.26939749]
[1743244319766,2.21470726,606.37,606.19,0.26939749]
[1743244319972,2.21470726,606.36,606.18,1.68]
[1743244320271,2.21470726,606.35,606.18,1.68]
[1743244320468,2.21470726,606.34,606.18,1.68]
[1743244320667,0.89536877,606.33,606.18,1.68]
[1743244320865,0.89536877,606.32,606.18,1.68]
[1743244321069,0.89536877,606.31,606.18,1.68]
[1743244321269,0.9834832,606.62,606.18,1.68]
[1743244321465,0.9834832,606.59,606.18,1.68]
[1743244321667,0.9834832,606.57,606.18,1.68]
[1743244321974,0.9834832,606.55,606.18,1.68]
[1743244322171,6.25401926,606.54,606.18,1.68]
[1743244322371,6.25401926,606.53,606.18,1.68]
[1743244322668,8.85868009,606.52,606.18,1.68]
[1743244322972,7.23750246,606.51,606.18,1.68]
[1743244323174,6.25401926,606.5,606.19,0.26960912]
[1743244323370,6.25401926,606.49,606.2,0.26959805]
[1743244323571,6.25666021,606.48,606.2,0.26959805]
[1743244323771,6.25666021,606.47,606.21,0.26959805]
[1743244324072,8.86132104,606.46,606.22,0.26959805]
[1743244324275,8.86132104,606.46,606.18,1.68]
[1743244324276,6.25666021,606.45,606.19,0.26959805]
[1743244324573,8.86132104,606.44,606.19,0.26959805]
[1743244324774,6.25666021,606.43,606.19,0.26959805]
[1743244325073,6.25666021,606.42,606.18,1.68]
[1743244325275,5.76200519,606.41,606.18,1.68]
[1743244325472,5.76200519,606.4,606.18,1.68]
[1743244325674,5.76346156,606.39,606.18,1.68]
[1743244325868,3.65060886,606.38,606.18,1.68]
[1743244326072,3.65060886,606.37,606.18,1.68]
[1743244326273,2.21671598,606.36,606.18,1.68]
[1743244326474,2.21671598,606.35,606.19,0.26948224]
[1743244326775,0.89618305,606.34,606.19,0.26948224]
[1743244327075,0.89619169,606.33,606.19,0.26948224]
[1743244327271,1.00179263,606.35,606.19,0.26948224]
[1743244327472,0.89620658,606.34,606.19,0.26948224]
[1743244327773,0.98438669,606.64,606.19,0.26948224]
[1743244327974,4.18219652,608.89,606.19,0.26948224]
[1743244327975,6.25809498,606.63,606.19,0.26948224]
[1743244328174,6.25809498,606.62,606.19,0.26948224]
[1743244328375,6.25809498,606.61,606.19,0.26948224]
[1743244328571,6.25809498,606.6,606.19,0.26948224]
[1743244328775,6.25809498,606.59,606.2,0.26929165]
[1743244328976,6.25809498,606.58,606.19,0.26929165]
[1743244329178,6.25809498,606.57,606.2,0.26929165]
[1743244329474,6.25809498,606.56,606.21,0.26929165]
[1743244329672,6.25824185,606.55,606.19,0.26929165]
[1743244329873,6.25824185,606.54,606.2,0.26929165]
[1743244330076,6.25828714,606.53,606.19,0.26929165]
[1743244330276,6.25828714,606.52,606.18,1.68]
[1743244330578,6.25828714,606.51,606.22,1.23078804]
[1743244330776,6.25828714,606.5,606.22,1.23078804]
[1743244330973,6.25828714,606.49,606.22,1.23078804]
[1743244331170,6.25828714,606.48,606.22,1.23078804]
[1743244331371,6.25828714,606.47,606.22,1.23078804]
[1743244331570,5.76373122,606.46,606.22,1.23078804]
[1743244331770,5.76373122,606.45,606.22,1.23078804]
[1743244331973,5.76373122,606.44,606.22,1.23078804]
[1743244332273,5.76373122,606.43,606.22,1.23078804]
[1743244332474,2.60610443,606.44,606.18,1.68]
[1743244332475,5.76373122,606.42,606.18,1.68]
[1743244332675,5.76373122,606.41,606.18,1.68]
[1743244332874,3.65075765,606.4,606.18,1.68]
[1743244333078,3.65075765,606.39,606.18,1.68]
[1743244333379,5.76530485,606.38,606.19,0.26933506]
[1743244333677,5.7672156,606.37,606.19,0.26933506]
[1743244333879,3.65261167,606.36,606.19,0.26933506]
[1743244334078,5.76782656,606.35,606.19,0.26933506]
[1743244334278,3.65261167,606.34,606.18,1.68]
[1743244334478,3.65261167,606.33,606.18,1.68]
[1743244334678,3.65261167,606.32,606.19,0.26930051]
[1743244334877,2.21753278,606.31,606.18,1.68]
[1743244335073,3.65311968,606.3,606.18,1.68]
[1743244335272,1.00234786,606.33,606.18,1.68]
[1743244335273,2.21753278,606.29,606.18,1.68]
[1743244335476,2.21753278,606.28,606.18,1.68]
[1743244335675,2.21995801,606.27,606.18,1.68]
[1743244335879,7.32917108,607.84,606.18,1.68]
[1743244335880,0.89749433,606.26,606.18,1.68]
[1743244336076,0.89749433,606.25,606.18,1.68]
[1743244336274,0.89749433,606.24,606.18,1.68]
[1743244336476,1.00234786,606.28,606.18,1.68]
[1743244336677,0.98582943,606.53,606.18,1.68]
[1743244336678,2.22068027,606.27,606.18,1.68]
[1743244336875,0.89778511,606.26,606.19,0.26943715]
[1743244337078,0.89778511,606.25,606.19,0.26943715]
[1743244337281,0.89778511,606.24,606.19,0.26943715]
[1743244337484,0.89778511,606.23,606.18,1.68]
[1743244337682,0.89778511,606.22,606.19,0.26949066]
[1743244337881,0.98582943,606.48,606.19,0.26949066]
[1743244338186,7.25630992,606.47,606.19,0.26949066]
[1743244338388,6.27048049,606.46,606.19,0.26949066]
[1743244338586,7.25630992,606.45,606.18,1.68]
[1743244338786,7.25630992,606.44,606.18,1.68]
[1743244339085,9.89411519,606.43,606.18,1.68]
[1743244339284,6.27048049,606.42,606.18,1.68]
[1743244339486,6.27048049,606.41,606.18,1.68]
[1743244339687,6.27220411,606.4,606.18,1.68]
[1743244339884,6.27220411,606.39,606.18,1.68]
[1743244340088,0.98680885,606.37,606.18,1.68]
[1743244340282,6.27220411,606.36,606.18,1.68]
[1743244340483,3.62461412,606.38,606.18,1.68]
[1743244340484,6.27220411,606.35,606.18,1.68]
[1743244340684,6.27220411,606.34,606.18,1.68]
[1743244340892,6.27220411,606.33,606.18,1.68]
[1743244341090,6.27220411,606.32,606.18,1.68]
[1743244341293,6.27220411,606.31,606.18,1.68]
[1743244341585,6.27220411,606.3,606.18,1.68]
[1743244341791,6.27220411,606.29,606.18,1.68]
[1743244341992,6.27220411,606.28,606.18,1.68]
[1743244342390,6.27220411,606.27,606.18,1.68]
[1743244342594,6.27220411,606.26,606.18,1.68]
[1743244342796,6.27220411,606.25,606.18,1.68]
[1743244342996,6.27220411,606.24,606.18,1.68]
[1743244343192,2.63780527,606.26,606.18,1.68]
[1743244343193,6.27220411,606.23,606.18,1.68]
[1743244343497,6.27220411,606.22,606.18,1.68]
[1743244343798,6.27220411,606.21,606.06,1.956]
[1743244343998,6.27220411,606.2,606.06,1.956]
[1743244344193,6.27220411,606.19,606.06,1.956]
[1743244344500,6.27220411,606.18,606.06,1.956]
[1743244344699,5.77752237,606.17,606.06,1.956]
[1743244344899,5.77752237,606.16,606.06,1.956]
[1743244345096,2.63780527,606.2,606.06,1.956]
[1743244345097,5.77752237,606.15,606.06,1.956]
[1743244345294,3.65952135,606.14,606.07,0.26984849]
[1743244345500,2.22212399,606.13,606.07,0.26984849]
[1743244345700,2.22053337,606.12,606.07,0.26984849]
[1743244345901,2.22053899,606.11,606.07,0.26984849]
[1743244346198,2.22053899,606.1,606.06,1.956]
[1743244346399,2.22053899,606.09,606.06,1.956]
[1743244346597,2.22053899,606.08,606.06,1.956]
[1743244346799,2.22025726,606.07,606.06,1.956]
[1743244347200,1.91291384,606.07,606.06,1.956]
[1743244347698,1.91143246,606.07,606.06,1.956]
[1743244348902,3.23265042,606.07,606.06,1.956]
[1743244349601,3.23219398,606.07,606.06,1.956]
[1743244350397,1.91097602,606.07,606.06,1.956]
[1743244351099,1.91097602,606.07,606.04,1.549]
[1743244351299,0.89643553,606.06,606.04,1.549]
[1743244351499,1.01454049,606.07,606.04,1.549]
[1743244351703,0.89600781,606.06,606.04,1.549]
[1743244352003,0.89601187,606.05,606.04,1.549]
[1743244352205,1.01454049,606.06,606.04,1.549]
[1743244353397,1.01454049,606.05,606.04,1.549]
[1743244357608,0.49484408,606.46,606.04,1.549]
[1743244357804,6.25063959,606.45,606.04,1.549]
[1743244358006,6.25063959,606.44,606.04,1.549]
[1743244358210,6.25063959,606.43,606.04,1.549]
[1743244358512,6.25063959,606.42,606.04,1.549]
[1743244358711,6.25063959,606.41,606.04,1.549]
[1743244358911,6.25063959,606.4,606.04,1.549]
[1743244359211,8.92822369,606.39,606.04,1.549]
[1743244359410,6.25063959,606.38,606.04,1.549]
[1743244359611,6.25063959,606.37,606.04,1.549]
[1743244359811,6.25063959,606.36,606.04,1.549]
[1743244360011,6.25063959,606.35,606.04,1.549]
[1743244360310,6.25063959,606.34,606.04,1.549]
[1743244360511,6.25063959,606.33,606.04,1.549]
[1743244360708,6.25063959,606.32,606.04,1.549]
[1743244360904,8.92822369,606.31,606.04,1.549]
[1743244361107,6.25063959,606.3,606.04,1.549]
[1743244361305,6.2507067,606.29,606.04,1.549]
[1743244361509,0.98326698,606.26,606.04,3.462]
[1743244361706,3.80520074,606.25,606.04,3.462]
[1743244362006,6.25005984,606.24,606.04,3.462]
[1743244362210,6.25005984,606.23,606.04,3.462]
[1743244362406,6.25005984,606.22,606.04,3.462]
[1743244362604,6.25005984,606.21,606.04,3.462]
[1743244362811,6.25005984,606.2,606.04,3.462]
[1743244363010,6.25005984,606.19,606.04,3.462]
[1743244363207,6.25005984,606.18,606.04,3.462]
[1743244363406,6.25005984,606.17,606.04,3.462]
[1743244363714,7.23332682,606.16,606.04,1.913]
[1743244364008,0.98326698,606.14,606.04,1.913]
[1743244364210,1.63841367,606.11,606.04,1.17042472]
[1743244364410,6.25005984,606.1,605.92,2.184]
[1743244364709,1.64470699,606.07,605.92,2.184]
[1743244364910,6.25005984,606.06,605.92,2.184]
[1743244365212,6.25005984,606.05,605.92,2.184]
[1743244365510,6.25005984,606.04,605.92,2.184]
[1743244365706,6.20176285,606.03,605.92,2.184]
[1743244365912,5.70670082,606.02,605.92,2.184]
[1743244366111,5.70670082,606.01,605.92,2.184]
[1743244366307,5.70670082,606.0,605.92,2.184]
[1743244366512,5.70670082,605.99,605.92,2.184]
[1743244366706,5.70670082,605.98,605.92,2.184]
[1743244366909,5.70670082,605.97,605.92,2.184]
[1743244367224,4.27468693,605.96,605.92,2.184]
[1743244367406,2.19488493,605.95,605.92,2.184]
[1743244367609,2.19488493,605.94,605.92,2.184]
[1743244367810,2.19488493,605.93,605.92,2.184]
[1743244368513,4.87246903,605.93,605.92,2.184]
[1743244370611,2.6775841,605.93,605.92,2.184]
[1743244371214,1.02984004,605.93,605.92,2.184]
[1743244382623,3.20723537,605.93,605.92,2.184]
[1743244383121,3.20697174,605.93,605.92,2.184]
[1743244383323,4.85009758,605.93,605.92,2.184]
[1743244385224,4.84942107,605.93,605.92,2.184]
[1743244387023,6.92556813,605.93,605.92,2.184]
[1743244388225,8.33243833,605.93,605.92,2.184]
[1743244389922,8.82761447,605.93,605.92,2.184]
[1743244390325,8.82761447,605.93,605.92,0.94605963]
[1743244390527,8.82761447,605.93,605.79,3.786]
[1743244390720,6.15464859,605.92,605.79,3.786]
[1743244390923,6.15464859,605.91,605.79,3.786]
[1743244391125,5.66190623,605.9,605.79,2.176]
[1743244391324,5.66190623,605.89,605.79,2.176]
[1743244391526,5.66190623,605.88,605.79,2.176]
[1743244391721,5.66190623,605.87,605.79,2.176]
[1743244391923,5.66190623,605.86,605.79,2.176]
[1743244392123,5.66190623,605.85,605.79,2.176]
[1743244392326,5.66190623,605.84,605.79,2.176]
[1743244392523,4.25573423,605.83,605.79,2.176]
[1743244392726,2.17757594,605.82,605.79,2.176]
[1743244393030,2.17757594,605.81,605.79,2.176]
[1743244393330,2.17757594,605.8,605.79,2.176]
[1743244394029,4.85054182,605.8,605.79,2.176]
[1743244395224,3.97181481,605.8,605.79,2.176]
[1743244395431,2.67296588,605.8,605.79,2.176]
[1743244395927,1.02984004,605.8,605.79,2.176]
[1743244397131,0.49502729,606.29,605.79,2.176]
[1743244397326,6.16438197,606.28,605.79,2.176]
[1743244397530,6.16438197,606.27,605.79,3.796]
[1743244397731,6.16438197,606.26,605.79,3.796]
[1743244397928,6.16438197,606.25,605.79,3.796]
[1743244398130,3.03130583,607.15,605.79,3.796]
[1743244398131,6.16438197,606.24,605.79,3.796]
[1743244398332,6.16438197,606.23,605.79,3.796]